lending/lending_fUSD_20240605
["ID","MTS","AMOUNT","RATE_DAILY","PERIOD"]
[328616037,1717618168289,-1953.97046175,0.00024798,2]
[328616038,1717618168311,-1953.97046175,0.00024798,2]
[328616039,1717618168334,-1953.97046175,0.00024798,2]
[328616040,1717618168358,-258.64790113,0.00024799,2]
[328616041,1717618168380,-258.64790106,0.00024799,2]
[328616042,1717618168402,-258.64790106,0.00024799,2]
[328616043,1717618168423,-258.64790106,0.00024799,2]
[328616044,1717618168447,-258.64790106,0.00024799,2]
[328616045,1717618168470,-258.64790106,0.00024799,2]
[328616046,1717618168491,-1509.45190113,0.00024907,2]
[328616047,1717618172134,-163.95,0.00024384,2]
[328616048,1717618172157,-444.51856062,0.00024907,2]
[328616049,1717618172177,-1250.0,0.00025,2]
[328616050,1717618172198,-2493.85085833,0.00025151,2]
[328616051,1717618172218,-172.26,0.00025338,2]
[328616052,1717618172238,-1126.2080859,0.00025491,3]
[328616053,1717618172258,-1126.20808589,0.00025491,3]
[328616054,1717618172278,-1000.0,0.00025572,2]
[328616055,1717618172299,-721.32,0.00025647,2]
[328616056,1717618172319,-258.64790106,0.00025806,2]
[328616057,1717618172338,-200.0,0.00025914,2]
[328616058,1717618172360,-1953.97046175,0.00026155,2]
[328616059,1717618172379,-250.0,0.00026157,2]
[328616060,1717618172398,-166.29,0.00026286,2]
[328616061,1717618199423,226.57668191,0.000201,2]
[328616062,1717618211425,226.57668191,0.00022499,2]
[328616067,1717618232140,-604.135,0.00026997,2]
[328616068,1717618232153,-258.00499275,0.00026997,2]
[328616069,1717618232163,-155.0,0.00026997,2]
[328616070,1717618232172,-155.69003604,0.00026998,2]
[328616071,1717618232181,-1300.0,0.00027,2]
[328616072,1717618232192,-625.70433105,0.0002717,2]
[328616073,1717618232201,-258.64790106,0.00027171,2]
[328616074,1717618232210,-2010.60105363,0.000272,2]
[328616075,1717618232219,-292.9,0.00027215,2]
[328616076,1717618232229,-263.62581916,0.00027261,2]
[328616077,1717618232238,-2334.89595111,0.00027261,2]
[328616078,1717618232249,-167.49,0.00027263,2]
[328616079,1717618232258,-8415.28893931,0.00027296,2]
[328616080,1717618232267,-3000.0,0.00027357,2]
[328616081,1717618232276,-1256.00380633,0.00027384,2]
[328616082,1717618232285,-212642.9326229,0.00027385,2]
[328616083,1717618232295,-510.64564482,0.00027397,4]
[328616084,1717618232306,-947.35180722,0.00027397,2]
[328616085,1717618232316,-4926.04484622,0.00027397,2]
[328616086,1717618232329,-525.86647177,0.00027397,4]
[328616087,1717618232338,-500.0,0.00027397,4]
[328616088,1717618232347,-500.0,0.00027397,4]
[328616089,1717618232356,-173.95,0.00027397,2]
[328616090,1717618232366,-1007.894475,0.00027833,2]
[328616091,1717618232376,-179.840895,0.00027833,2]
[328616092,1717618232387,-180.851124,0.00027833,2]
[328616093,1717618232397,-1323.36049,0.00027833,2]
[328616094,1717618232408,-153.871111,0.00027833,2]
[328616095,1717618232418,-2122.401253,0.00027833,2]
[328616096,1717618232432,-721.32,0.00027911,2]
[328616097,1717618232441,-172.26,0.00028026,2]
[328616098,1717618232452,-537.34426648,0.00028159,2]
[328616099,1717618232462,-3890.25994623,0.00028159,2]
[328616100,1717618232472,-528.92504829,0.0002816,4]
[328616101,1717618232481,-258.58,0.00028171,2]
[328616102,1717618232490,-10968.56338147,0.00028179,2]
[328616103,1717618232501,-4440.92771501,0.0002818,2]
[328616104,1717618232510,-1007.894475,0.00028181,2]
[328616105,1717618232520,-1323.36049,0.00028181,2]
[328616106,1717618232529,-2122.401253,0.00028181,2]
[328616107,1717618232538,-453.57815935,0.00028345,2]
[328616108,1717618232549,-35459.35989058,0.00028441,2]
[328616109,1717618232558,-3814.0,0.00028442,2]
[328616110,1717618232568,-957.32584388,0.000285,2]
[328616111,1717618232577,-1007.894475,0.00028529,2]
[328616112,1717618232587,-1323.36049,0.00028529,2]
[328616113,1717618232596,-2122.401253,0.00028529,2]
[328616114,1717618232606,-258.64790106,0.00028535,2]
[328616115,1717618232615,-292.9,0.00028575,2]
[328616116,1717618232624,-1000.0,0.00028768,2]
[328616117,1717618232635,-500.0,0.000288,7]
[328616118,1717618232644,-317.60459169,0.00028859,2]
[328616119,1717618232653,-1007.894475,0.00028877,2]
[328616120,1717618232663,-1323.36049,0.00028877,2]
[328616121,1717618232673,-2122.401253,0.00028877,2]
[328616122,1717618232684,-500.0,0.000289,10]
[328616123,1717618232693,-573.17,0.0002894,4]
[328616124,1717618232702,-573.17,0.0002894,4]
[328616125,1717618232711,-500.0,0.0002894,4]
[328616126,1717618232721,-500.0,0.0002894,4]
[328616127,1717618232730,-500.0,0.0002894,4]
[328616128,1717618232741,-500.0,0.0002894,4]
[328616129,1717618232752,-574.8312451,0.0002894,4]
[328616130,1717618232762,-1293.76,0.0002894,4]
[328616131,1717618232772,-1293.76,0.0002894,4]
[328616132,1717618232781,-1089.54,0.0002894,4]
[328616133,1717618232792,-1089.54,0.0002894,4]
[328616134,1717618232954,-546.18730191,0.0002894,4]
[328616135,1717618232963,-500.0,0.0002894,4]
[328616136,1717618232973,-500.0,0.0002894,4]
[328616137,1717618232982,-500.0,0.0002894,4]
[328616138,1717618232991,-877.44,0.0002894,4]
[328616139,1717618233001,-877.44,0.0002894,4]
[328616140,1717618233010,-500.0,0.0002894,4]
[328616141,1717618233019,-500.0,0.0002894,4]
[328616142,1717618233028,-1055.87863492,0.00028941,2]
[328616143,1717618233036,-265.85210799,0.00028999,2]
[328616144,1717618233045,-1350.0,0.00029,2]
[328616145,1717618233055,-1100.0,0.00029,10]
[328616146,1717618233064,-5000.0,0.0002904,7]
[328616147,1717618233073,-443.12,0.00029041,2]
[328616148,1717618233082,-872.63,0.00029041,2]
[328616149,1717618233091,-872.63,0.00029041,2]
[328616150,1717618233100,-416.97,0.00029041,2]
[328616151,1717618233112,-416.97,0.00029041,2]
[328616152,1717618233121,-872.63,0.00029041,2]
[328616153,1717618233131,-416.97,0.00029041,2]
[328616154,1717618233139,-872.63,0.00029041,2]
[328616155,1717618233149,-872.63,0.00029041,2]
[328616156,1717618233158,-416.97,0.00029041,2]
[328616157,1717618233167,-416.97,0.00029041,2]
[328616158,1717618233176,-872.63,0.00029041,2]
[328616159,1717618233187,-416.97,0.00029041,2]
[328616160,1717618233196,-872.63,0.00029041,2]
[328616161,1717618233205,-869.41,0.00029041,2]
[328616162,1717618233214,-416.97,0.00029041,2]
[328616163,1717618233223,-416.97,0.00029041,2]
[328616164,1717618233232,-1055.87863486,0.00029078,2]
[328616165,1717618233241,-500.0,0.000291,2]
[328616166,1717618233251,-1700.0,0.000291,10]
[328616167,1717618233260,-352.56,0.00029178,2]
[328616168,1717618233269,-2300.0,0.000292,10]
[328616169,1717618233279,-1055.87863486,0.00029215,2]
[328616170,1717618233289,-179.840895,0.00029225,2]
[328616171,1717618233298,-1007.894475,0.00029225,2]
[328616172,1717618233307,-180.851124,0.00029225,2]
[328616173,1717618233317,-1323.36049,0.00029225,2]
[328616174,1717618233326,-2122.401253,0.00029225,2]
[328616175,1717618233336,-185.89877539,0.0002927,2]
[328616176,1717618233345,-30824.78930588,0.0002928,2]
[328616177,1717618233362,-4125.0000005,0.0002928,2]
[328616178,1717618233373,-2015.29501095,0.0002928,2]
[328616179,1717618233384,-18300.14923891,0.0002928,2]
[328616180,1717618233395,-21125.00205831,0.0002928,2]
[328616181,1717618233406,-778.63384695,0.0002928,2]
[328616183,1717618233507,-0.01994444,0.0002928,2]
[328616185,1717618233518,-48812.06509406,0.0002928,2]
[328616187,1717618233528,-2900.0,0.000293,10]
[328616189,1717618233537,-156.35946454,0.00029324,2]
[328616191,1717618233546,-1055.87863486,0.00029352,2]
[328616193,1717618233555,-258.58,0.00029368,2]
[328616195,1717618233565,-309.90151896,0.0002937,2]
[328616197,1717618233574,-500.0,0.00029378,4]
[328616199,1717618233583,-500.0,0.00029378,4]
[328616201,1717618233593,-500.0,0.00029378,4]
[328616203,1717618233602,-500.0,0.00029378,4]
[328616206,1717618233611,-500.0,0.00029378,4]
[328616208,1717618233620,-500.0,0.00029378,4]
[328616209,1717618233629,-573.17,0.00029378,4]
[328616211,1717618233638,-500.0,0.00029378,4]
[328616213,1717618233647,-500.0,0.00029378,4]
[328616215,1717618233656,-500.0,0.00029378,4]
[328616217,1717618233666,-500.0,0.00029378,4]
[328616219,1717618233675,-500.0,0.00029378,4]
[328616221,1717618233684,-500.0,0.00029378,4]
[328616223,1717618233693,-500.0,0.00029378,4]
[328616225,1717618233702,-500.0,0.00029378,4]
[328616227,1717618233711,-527.73,0.00029378,4]
[328616229,1717618233720,-527.73,0.00029378,4]
[328616231,1717618233729,-1293.76,0.00029378,4]
[328616233,1717618233738,-500.0,0.00029378,4]
[328616235,1717618233748,-500.0,0.00029378,4]
[328616237,1717618233757,-1089.54,0.00029378,4]
[328616239,1717618233765,-500.0,0.00029378,4]
[328616241,1717618233774,-500.0,0.00029378,4]
[328616243,1717618233783,-5598.89,0.00029378,4]
[328616245,1717618233792,-5598.89,0.00029378,4]
[328616247,1717618233801,-500.0,0.00029378,4]
[328616249,1717618233810,-500.0,0.00029378,4]
[328616251,1717618233819,-500.0,0.00029378,4]
[328616252,1717618233828,-500.0,0.00029378,4]
[328616253,1717618233838,-500.0,0.00029378,4]
[328616254,1717618233847,-500.0,0.00029378,4]
[328616255,1717618233856,-500.0,0.00029378,4]
[328616256,1717618233865,-500.0,0.00029378,4]
[328616257,1717618233875,-500.0,0.00029378,4]
[328616258,1717618233883,-500.0,0.00029378,4]
[328616259,1717618233893,-500.0,0.00029378,4]
[328616260,1717618233902,-877.44,0.00029378,4]
[328616261,1717618233911,-207.79,0.00029378,4]
[328616262,1717618233921,-500.0,0.00029378,4]
[328616263,1717618233930,-542.53,0.00029378,4]
[328616264,1717618233939,-500.15528126,0.00029378,4]
[328616265,1717618233949,-500.0,0.00029379,4]
[328616266,1717618233958,-500.0,0.00029379,4]
[328616267,1717618233967,-500.0,0.00029379,4]
[328616268,1717618233976,-573.56251658,0.00029379,4]
[328616269,1717618233985,-530.62202728,0.00029379,4]
[328616270,1717618233994,-500.0,0.00029379,4]
[328616271,1717618234005,-500.0,0.00029379,4]
[328616272,1717618234015,-500.0,0.00029379,4]
[328616273,1717618234024,-500.0,0.00029379,4]
[328616274,1717618234032,-500.0,0.00029379,4]
[328616275,1717618234042,-500.0,0.00029379,4]
[328616276,1717618234051,-500.0,0.00029379,4]
[328616277,1717618234060,-500.0,0.00029379,4]
[328616278,1717618234069,-520.46814134,0.00029379,4]
[328616279,1717618234078,-500.0,0.00029379,4]
[328616280,1717618234087,-500.0,0.00029379,4]
[328616281,1717618234097,-500.0,0.00029379,4]
[328616282,1717618234108,-500.0,0.00029379,4]
[328616283,1717618234119,-500.0,0.00029379,4]
[328616284,1717618234128,-500.0,0.00029379,4]
[328616285,1717618234137,-500.0,0.00029379,4]
[328616286,1717618234147,-500.0,0.00029379,4]
[328616287,1717618234156,-500.0,0.00029379,4]
[328616288,1717618234166,-500.0,0.00029379,4]
[328616289,1717618234175,-511.64298999,0.00029379,4]
[328616290,1717618234185,-526.96762225,0.00029379,4]
[328616291,1717618234196,-500.0,0.00029379,4]
[328616292,1717618234205,-500.0,0.00029379,4]
[328616293,1717618234214,-256.78180953,0.00029379,4]
[328616294,1717618234223,-500.0,0.00029379,4]
[328616295,1717618234232,-500.0,0.00029379,4]
[328616296,1717618234241,-521.73712666,0.00029379,4]
[328616297,1717618234251,-500.0,0.00029379,4]
[328616298,1717618234260,-500.0,0.00029379,4]
[328616299,1717618234268,-500.0,0.00029379,4]
[328616300,1717618234278,-500.0,0.00029379,4]
[328616301,1717618234287,-556.34760615,0.00029379,4]
[328616302,1717618234296,-627.6950272,0.00029379,4]
[328616303,1717618234305,-500.0,0.00029379,4]
[328616304,1717618234314,-500.0,0.00029379,4]
[328616305,1717618234323,-500.0,0.00029379,4]
[328616306,1717618234332,-500.0,0.00029379,4]
[328616307,1717618234341,-500.0,0.00029379,4]
[328616308,1717618234350,-500.0,0.00029379,4]
[328616309,1717618234359,-473.70439169,0.00029379,4]
[328616310,1717618234368,-500.0,0.00029379,4]
[328616311,1717618234378,-500.0,0.00029379,4]
[328616312,1717618234387,-2231.34,0.00029379,4]
[328616313,1717618234395,-2231.34,0.00029379,4]
[328616314,1717618234404,-500.0,0.00029379,4]
[328616315,1717618234413,-500.0,0.00029379,4]
[328616316,1717618234423,-500.0,0.00029379,4]
[328616317,1717618234432,-500.0,0.00029379,4]
[328616318,1717618234442,-500.0,0.00029379,4]
[328616319,1717618234451,-500.0,0.00029379,4]
[328616320,1717618234460,-639.65503417,0.00029379,4]
[328616321,1717618234470,-500.0,0.00029379,4]
[328616322,1717618234478,-551.84098052,0.00029379,4]
[328616323,1717618234487,-500.0,0.00029379,4]
[328616324,1717618234496,-500.0,0.00029379,4]
[328616325,1717618234508,-500.0,0.00029379,4]
[328616326,1717618234521,-500.0,0.00029379,4]
[328616327,1717618234531,-500.0,0.00029379,4]
[328616328,1717618234540,-500.0,0.00029379,4]
[328616329,1717618234550,-500.0,0.00029379,4]
[328616330,1717618234559,-500.0,0.00029379,4]
[328616331,1717618234568,-784.88,0.00029379,4]
[328616332,1717618234577,-784.88,0.00029379,4]
[328616333,1717618234587,-500.0,0.00029379,4]
[328616334,1717618234596,-500.0,0.00029379,4]
[328616335,1717618234605,-500.0,0.00029379,4]
[328616336,1717618234615,-500.0,0.00029379,4]
[328616337,1717618234624,-500.0,0.00029379,4]
[328616338,1717618234634,-500.0,0.00029379,4]
[328616339,1717618234643,-687.36,0.00029379,4]
[328616340,1717618234652,-687.36,0.00029379,4]
[328616341,1717618234661,-2545.53,0.00029379,4]
[328616342,1717618234670,-2545.53,0.00029379,4]
[328616343,1717618234683,-327.13231303,0.00029379,4]
[328616344,1717618234692,-951.38,0.00029379,4]
[328616345,1717618234702,-951.38,0.00029379,4]
[328616346,1717618234711,-500.0,0.00029379,4]
[328616347,1717618234720,-500.0,0.00029379,4]
[328616348,1717618234729,-500.0,0.00029379,4]
[328616349,1717618234738,-500.0,0.00029379,4]
[328616350,1717618234747,-1358.75,0.00029379,4]
[328616351,1717618234757,-1358.75,0.00029379,4]
[328616352,1717618234766,-1052.52,0.00029379,4]
[328616353,1717618234775,-1052.52,0.00029379,4]
[328616354,1717618234784,-4236.53,0.00029379,4]
[328616355,1717618234793,-4236.53,0.00029379,4]
[328616356,1717618234802,-500.0,0.00029379,4]
[328616357,1717618234811,-500.0,0.00029379,4]
[328616358,1717618234820,-500.0,0.00029379,4]
[328616359,1717618234829,-500.0,0.00029379,4]
[328616360,1717618234838,-500.0,0.00029379,4]
[328616361,1717618234847,-500.0,0.00029379,4]
[328616362,1717618234857,-500.0,0.00029379,4]
[328616363,1717618234867,-500.0,0.00029379,4]
[328616364,1717618234878,-1171.59,0.00029379,4]
[328616365,1717618234887,-1171.59,0.00029379,4]
[328616366,1717618234896,-500.0,0.00029379,4]
[328616367,1717618234906,-500.0,0.00029379,4]
[328616368,1717618234917,-829.9,0.00029379,4]
[328616369,1717618234926,-829.9,0.00029379,4]
[328616370,1717618234936,-500.0,0.00029379,4]
[328616371,1717618234945,-500.0,0.00029379,4]
[328616372,1717618234955,-500.0,0.00029379,4]
[328616373,1717618234964,-500.0,0.00029379,4]
[328616374,1717618234975,-500.0,0.00029379,4]
[328616375,1717618234985,-500.0,0.00029379,4]
[328616376,1717618234995,-307.76761839,0.00029379,4]
[328616377,1717618235006,-500.0,0.00029379,4]
[328616378,1717618235016,-500.0,0.00029379,4]
[328616379,1717618235025,-317.60459169,0.00029379,2]
[328616380,1717618235035,-42287.9507167,0.0002938,2]
[328616381,1717618235051,-2253.71037969,0.0002938,2]
[328616382,1717618235063,-6336.6456329,0.0002938,2]
[328616383,1717618235071,-151.0,0.0002938,7]
[328616384,1717618235082,-151.0,0.0002938,7]
[328616385,1717618235093,-601.78683,0.0002938,7]
[328616386,1717618235102,-294.86748077,0.0002938,7]
[328616387,1717618235117,-306.91934923,0.0002938,7]
[328616388,1717618235126,-2188.883,0.00029393,2]
[328616389,1717618235136,-1468.0,0.00029393,2]
[328616390,1717618235147,-549.10416292,0.00029393,2]
[328616391,1717618235160,-538.88,0.00029393,2]
[328616392,1717618235177,-3252.16784281,0.00029393,2]
[328616393,1717618235290,-1182.56989427,0.00027832,2]
[328616394,1717618235299,-127.6380067,0.00028158,2]
[328616395,1717618235311,-691.95,0.00028158,2]
[328616396,1717618235332,-8698.57941669,0.00028158,2]
[328616397,1717618235344,-1012.61297689,0.00028158,2]
[328616398,1717618235353,-2642.6174172,0.00029393,2]
[328616399,1717618235365,-2131.10060352,0.00029393,2]
[328616400,1717618235390,226.57668191,0.00022499,2]
[328616410,1717618238183,-675.40068488,0.00027832,2]
[328616412,1717618238195,-1755.04536784,0.00027832,2]
[328616440,1717618238714,-273.33481089,0.00027832,2]
[328616442,1717618238727,-1399.84398726,0.00027832,2]
[328616446,1717618238756,-3431.2380609,0.00027832,2]
[328616448,1717618238766,-296.58359376,0.00028158,2]
[328616450,1717618238775,-500.0,0.00029379,4]
[328616453,1717618238784,-500.0,0.00029379,4]
[328616455,1717618238793,-9307.90794773,0.00029393,2]
[328616458,1717618238804,-19593.22202582,0.00029393,2]
[328616460,1717618238812,-1064.0,0.00029393,2]
[328616463,1717618238822,-928.69933237,0.00029398,2]
[328616465,1717618238831,-500.0,0.000294,8]
[328616469,1717618238841,-470.27391007,0.000294,8]
[328616471,1717618238850,-500.0,0.000294,10]
[328616474,1717618238860,-151.0,0.000294,7]
[328616476,1717618238869,-151.0,0.000294,7]
[328616477,1717618238878,-157.873605,0.000294,7]
[328616479,1717618238887,-244.929612,0.000294,7]
[328616480,1717618238896,-151.0,0.000294,7]
[328616482,1717618238905,-151.0,0.000294,7]
[328616483,1717618238915,-244.929612,0.000294,7]
[328616484,1717618238924,-151.0,0.000294,7]
[328616485,1717618238933,-154.559015,0.000294,7]
[328616486,1717618238943,-258.58,0.00029414,2]
[328616487,1717618238952,-500.0,0.00029423,4]
[328616488,1717618238961,-436.58441134,0.00029423,2]
[328616489,1717618238970,-282.2,0.00029424,4]
[328616490,1717618238980,-500.0,0.00029424,4]
[328616491,1717618238989,-500.0,0.00029424,4]
[328616492,1717618238999,-500.0,0.00029424,4]
[328616493,1717618239009,-500.0,0.00029424,4]
[328616494,1717618239018,-155.0,0.00029424,4]
[328616495,1717618239027,-506.34875543,0.00029424,4]
[328616496,1717618239037,-264.28530766,0.00029424,4]
[328616497,1717618239046,-500.0,0.00029424,4]
[328616498,1717618239056,-586.82849296,0.00029424,4]
[328616499,1717618239066,-502.35922141,0.00029424,4]
[328616500,1717618239075,-500.0,0.00029424,4]
[328616501,1717618239084,-500.0,0.00029424,4]
[328616502,1717618239094,-500.0,0.00029424,4]
[328616503,1717618239103,-500.0,0.00029424,4]
[328616504,1717618239116,-549.96527746,0.00029424,4]
[328616505,1717618239126,-500.0,0.00029424,4]
[328616506,1717618239135,-207.07280371,0.00029424,4]
[328616507,1717618239145,-537.01429079,0.00029424,4]
[328616508,1717618239155,-546.0396304,0.00029424,4]
[328616509,1717618239165,-541.45073297,0.00029424,4]
[328616510,1717618239175,-500.0,0.00029424,4]
[328616511,1717618239185,-500.0,0.00029424,4]
[328616512,1717618239196,-313.46115937,0.00029424,4]
[328616513,1717618239206,-150.0,0.00029424,4]
[328616514,1717618239216,-150.0,0.00029424,4]
[328616515,1717618239225,-530.89615058,0.00029424,4]
[328616516,1717618239235,-500.0,0.00029424,4]
[328616517,1717618239245,-525.98259246,0.00029424,4]
[328616518,1717618239256,-500.0,0.00029424,4]
[328616519,1717618239266,-531.9907728,0.00029424,4]
[328616520,1717618239275,-516.88119147,0.00029424,4]
[328616521,1717618239285,-417.31757026,0.00029424,4]
[328616522,1717618239295,-531.31780411,0.00029424,4]
[328616523,1717618239305,-500.0,0.00029424,4]
[328616524,1717618239315,-500.0,0.00029424,4]
[328616525,1717618239324,-515.87158884,0.00029424,4]
[328616526,1717618239334,-500.0,0.00029424,4]
[328616527,1717618239344,-513.06460421,0.00029424,4]
[328616528,1717618239354,-357.84252857,0.00029424,4]
[328616529,1717618239363,-518.81093215,0.00029424,4]
[328616530,1717618239373,-532.16999699,0.00029424,4]
[328616531,1717618239382,-522.68988066,0.00029424,4]
[328616532,1717618239392,-500.0,0.00029424,4]
[328616533,1717618239401,-500.0,0.00029424,4]
[328616534,1717618239411,-1000.0,0.00029424,5]
[328616535,1717618239420,-1000.0,0.00029424,5]
[328616536,1717618239430,-520.17813629,0.00029424,4]
[328616537,1717618239440,-500.0,0.00029424,4]
[328616538,1717618239450,-561.12345693,0.00029424,4]
[328616539,1717618239459,-524.83954731,0.00029424,4]
[328616540,1717618239468,-527.5692296,0.00029424,4]
[328616541,1717618239478,-500.0,0.00029424,4]
[328616542,1717618239488,-524.5449277,0.00029424,4]
[328616543,1717618239497,-500.0,0.00029424,4]
[328616544,1717618239508,-540.91921979,0.00029424,4]
[328616545,1717618239518,-500.0,0.00029424,4]
[328616546,1717618239528,-500.0,0.00029424,4]
[328616547,1717618239537,-500.0,0.00029424,4]
[328616548,1717618239547,-500.0,0.00029424,4]
[328616549,1717618239557,-500.0,0.00029424,4]
[328616550,1717618239566,-429.63360606,0.00029424,4]
[328616551,1717618239576,-500.0,0.00029424,4]
[328616552,1717618239586,-500.0,0.00029424,4]
[328616553,1717618239595,-500.0,0.00029424,4]
[328616554,1717618239606,-500.0,0.00029424,4]
[328616555,1717618239615,-539.0252409,0.00029424,4]
[328616556,1717618239625,-519.70447995,0.00029424,4]
[328616557,1717618239635,-500.0,0.00029424,4]
[328616558,1717618239644,-516.2397394,0.00029424,4]
[328616559,1717618239653,-156.92989082,0.00029424,4]
[328616560,1717618239663,-514.05485746,0.00029424,4]
[328616561,1717618239673,-529.46267694,0.00029424,4]
[328616562,1717618239682,-522.38632887,0.00029424,4]
[328616563,1717618239692,-500.0,0.00029424,4]
[328616564,1717618239702,-500.0,0.00029424,4]
[328616565,1717618239712,-500.0,0.00029424,4]
[328616566,1717618239722,-385.31313169,0.00029424,4]
[328616567,1717618239731,-354.40288745,0.00029424,4]
[328616568,1717618239741,-500.0,0.00029424,4]
[328616569,1717618239750,-500.0,0.00029424,4]
[328616570,1717618239760,-500.0,0.00029424,4]
[328616571,1717618239770,-500.0,0.00029424,4]
[328616572,1717618239780,-166.78775578,0.00029424,4]
[328616573,1717618239789,-558.3221744,0.00029424,4]
[328616574,1717618239798,-500.0,0.00029424,4]
[328616575,1717618239808,-203.12604303,0.00029424,4]
[328616576,1717618239826,-218.54302158,0.00029424,4]
[328616577,1717618239835,-500.0,0.00029424,4]
[328616578,1717618239845,-500.0,0.00029424,4]
[328616579,1717618239854,-600.13397882,0.00029424,4]
[328616580,1717618239864,-550.63560311,0.00029424,4]
[328616581,1717618239873,-500.0,0.00029424,4]
[328616582,1717618239883,-500.0,0.00029424,4]
[328616583,1717618239892,-151.0,0.00029424,7]
[328616584,1717618239901,-500.0,0.00029424,4]
[328616585,1717618239910,-522.62542181,0.00029424,4]
[328616586,1717618239920,-500.0,0.00029424,4]
[328616587,1717618239929,-512.45477765,0.00029424,4]
[328616588,1717618239939,-287.93596144,0.00029424,4]
[328616589,1717618239949,-151.0,0.00029424,7]
[328616590,1717618239958,-500.0,0.00029424,4]
[328616591,1717618239968,-535.18764088,0.00029424,4]
[328616592,1717618239978,-500.0,0.00029424,4]
[328616593,1717618239987,-500.0,0.00029424,4]
[328616594,1717618239997,-500.0,0.00029424,4]
[328616595,1717618240007,-155.505113,0.00029424,7]
[328616597,1717618240016,-500.0,0.00029424,4]
[328616599,1717618240026,-151.0,0.00029424,7]
[328616601,1717618240036,-500.0,0.00029424,4]
[328616603,1717618240046,-500.0,0.00029424,4]
[328616605,1717618240056,-410.91897129,0.00029424,4]
[328616607,1717618240065,-968.18,0.00029424,4]
[328616609,1717618240075,-968.18,0.00029424,4]
[328616611,1717618240085,-500.0,0.00029424,4]
[328616613,1717618240095,-500.0,0.00029424,4]
[328616615,1717618240107,-151.0,0.00029424,7]
[328616616,1717618240118,-500.0,0.00029424,4]
[328616619,1717618240127,-560.77894332,0.00029424,4]
[328616621,1717618240137,-500.0,0.00029424,4]
[328616623,1717618240147,-500.0,0.00029424,4]
[328616625,1717618240158,-500.0,0.00029424,4]
[328616627,1717618240168,-500.0,0.00029424,4]
[328616629,1717618240178,-151.0,0.00029424,7]
[328616631,1717618240189,-500.0,0.00029424,4]
[328616633,1717618240199,-512.86045617,0.00029424,4]
[328616634,1717618240208,-500.0,0.00029424,4]
[328616635,1717618240218,-500.0,0.00029424,4]
[328616636,1717618240227,-225.692707,0.00029424,7]
[328616637,1717618240237,-500.0,0.00029424,4]
[328616638,1717618240247,-500.0,0.00029424,4]
[328616639,1717618240259,-500.0,0.00029424,4]
[328616640,1717618240269,-500.0,0.00029424,4]
[328616641,1717618240279,-1175.72,0.00029424,4]
[328616642,1717618240289,-1175.72,0.00029424,4]
[328616643,1717618240298,-500.0,0.00029424,4]
[328616644,1717618240308,-500.0,0.00029424,4]
[328616645,1717618240318,-500.0,0.00029424,4]
[328616646,1717618240328,-500.0,0.00029424,4]
[328616647,1717618240338,-500.0,0.00029424,4]
[328616648,1717618240348,-238.21174092,0.00029424,4]
[328616649,1717618240359,-500.0,0.00029424,4]
[328616650,1717618240369,-500.0,0.00029424,4]
[328616651,1717618240379,-500.0,0.00029424,4]
[328616652,1717618240389,-500.0,0.00029424,4]
[328616653,1717618240398,-500.0,0.00029424,4]
[328616654,1717618240408,-500.0,0.00029424,4]
[328616655,1717618240418,-500.0,0.00029424,4]